Cogmind - Beta 16 @@@ ROGUE MODE // 2025.10.27 @ 08:22:41 Player: Moodge Result: Destroyed by S-10 Pest with Light Assault Rifle Performance ------------- Evolutions (1) 500 Regions Visited (2) 400 Robots Destroyed (33) 165 Value Destroyed (672) 672 Prototype IDs (1) 20 Alien Tech Used (0) 0 Bonus (0) 0 TOTAL SCORE: 1757 Bonus ------- None Cogmind --------- Core Integrity 0/400 Matter 300/300 Energy 100/100 System Corruption 0% Temperature Cool (0) Movement Core (1350) Ox26 Location -9/Materials Parts ------- > --- POWER (1) -------- (None) > --- PROPULSION (4) --- (None) > --- UTILITY (2) ------ Huge Storage Unit > --- WEAPON (2) ------- (None) > --- INVENTORY (25) --- Light Ion Engine Small Storage Unit Visual Processing Unit Signal Interpreter Terrain Scanner Datajack Peak State ------------ > --- POWER ------------ Light Ion Engine > --- PROPULSION ------- Aluminum Leg Aluminum Leg Aluminum Leg Aluminum Leg > --- UTILITY ---------- Small Storage Unit ECM Suite > --- WEAPON ----------- Medium Laser Spread Laser > --- INVENTORY -------- Light Ion Engine Light Ion Engine Aluminum Leg Visual Processing Unit Signal Interpreter Terrain Scanner Tractor Beam Datajack [Rating: 10] Favorites ----------- Power Light Ion Engine Engine Light Ion Engine Propulsion Aluminum Leg Leg Aluminum Leg Utility Small Storage Unit Device ECM Suite Storage Small Storage Unit Weapon Medium Laser Energy Gun Medium Laser Energy Cannon Advanced Beam Cannon Impact Weapon Hammer Build | -11 -10 -9 ------- Run | Yrd Mat Mat Slots Evolved 2 | . . 2 Power . | . . . Propulsion 2 | . . 2 Utility . | . . . Weapon . | . . . Parts Attached 22 | 6 3 13 Power 3 | 1 1 1 Engine 3 | 1 1 1 Core . | . . . Reactor . | . . . Propulsion 8 | 2 . 6 Treads . | . . . Leg 8 | 2 . 6 Wheel . | . . . Hover . | . . . Flight . | . . . Utility 4 | 1 1 2 Device 2 | . 1 1 Storage 2 | 1 . 1 Processor . | . . . Hackware . | . . . Protection . | . . . Artifact . | . . . Weapon 7 | 2 1 4 Energy Gun 5 | 2 1 2 Energy Cannon 1 | . . 1 Ballistic Gun . | . . . Ballistic Cannon . | . . . Launcher . | . . . Special Weapon . | . . . Impact Weapon 1 | . . 1 Slashing Weapon . | . . . Piercing Weapon . | . . . Special Melee Weapon . | . . . Unidentified Prototypes 1 | . . 1 Parts Lost 15 | . . 15 Power 2 | . . 2 Propulsion 7 | . . 7 Utility 2 | . . 2 Weapon 4 | . . 4 Highest Loss Streak 8 | . . 8 To Critical Strikes . | . . . Average Backups 6 | 4 5 7 Power 1 | 1 2 1 Propulsion . | 1 . . Utility 2 | . 1 3 Weapon . | 1 1 . Tool/Special . | . . . Unused Backups 9 | . 2 7 Power 4 | . 2 2 Propulsion 1 | . . 1 Utility 3 | . . 3 Weapon . | . . . Tool/Special 1 | . . 1 Average Slot Usage (%) 82 | . 94 74 Engine 11 | . 14 9 Leg 25 | . 28 24 Device 10 | . 8 10 Storage 12 | . 14 11 Energy Gun 20 | . 28 15 Impact Weapon 2 | . . 3 Peak Build Rating 10 | 6 7 10 Average Rating 6 | 1 6 7 On Entrance 4 | . 6 7 Avg Prop Armor Cover (%) . | . . . Naked Turns . | . . . Heaviest Build 87 | 14 16 87 Greatest Support 40 | 20 20 40 Greatest Overweight (x) 26 | 1 . 26 Average Overweight (x) . | . . . Largest Inventory Capacity 25 | 8 8 25 Average Capacity 11 | 7 8 13 Most Carried 9 | 7 8 9 Average Carried 6 | 4 6 7 Final Capacity 25 | 8 8 25 Final Carried 8 | 2 8 6 Class Distribution -------------------- 81% | Mutant 18% | Scavenger-Mutant Dominant Class ---------------- Mutant | -10/Materials Mutant | -9/Materials Resources | -11 -10 -9 ----------- Run | Yrd Mat Mat Matter Collected 412 | 204 78 130 Remotely 80 | . . 80 Salvage Created 916 | . 315 601 Parts 60 | . 24 36 Haulers Intercepted . | . . . Recyclers Shooed . | . . . Parts Field Recycled . | . . . Retrieved Matter . | . . . Parts Self-Destructed . | . . . Prevented . | . . . Parts Restored . | . . . Kills | -11 -10 -9 ------- Run | Yrd Mat Mat Combat Hostiles Destroyed 21 | . 8 13 Melee 1 | . . 1 Guns 17 | . 8 9 AOE 3 | . . 3 Classes Destroyed 8 | . 3 5 Worker 5 | . 4 1 Builder 5 | . . 5 Tunneler 1 | . . 1 Recycler 1 | . . 1 Swarmer 6 | . 3 3 Grunt 13 | . 5 8 Brawler 1 | . . 1 Sentry 1 | . . 1 Best Kill Streak 9 | . 4 9 Combat Bots Only 9 | . 3 9 Max Kills in Single Turn 3 | . 2 3 Gunslinging 1 | . 1 . Exploded 3 | . . 3 Melee 1 | . . 1 Uniques/NPCs Destroyed . | . . . Combat | -11 -10 -9 -------- Run | Yrd Mat Mat Hostile Shots Fired 179 | . 33 146 Missed 40 | . 8 32 Hits 139 | . 25 114 Melee 2 | . . 2 Projectile 137 | . 25 112 Critical Strikes 2 | . 1 1 Damage Taken 1533 | . 264 1269 Core 412 | . 8 404 Absorbed by Shields . | . . . Core Remaining (%) 98 | 100 96 . Volleys Fired 55 | . 25 30 Largest 2 | . 2 2 Hottest 115 | . 100 115 Shots Fired 98 | . 50 48 Gun 98 | . 50 48 Cannon . | . . . Launcher . | . . . Special . | . . . Kinetic . | . . . Thermal 98 | . 50 48 Explosive . | . . . Electromagnetic . | . . . Robot Hit Streak 16 | . 16 16 Robot Miss Streak 3 | . 2 3 Penetration Max . | . . . Secondary Targets 4 | . 4 . Max Gunslinging Chain 1 | . 1 . Shots Hit Robots 80 | . 38 42 Core Hits 65 | . 19 46 Critical Kills . | . . . Critical Parts Destroyed 4 | . . 4 Critical Strikes 7 | . 3 4 Burn 3 | . 3 . Smash 4 | . . 4 Melee Attacks 8 | . . 8 Impact 8 | . . 8 Slashing . | . . . Piercing . | . . . Sneak Attacks 5 | . . 5 Combat Hostiles . | . . . Follow-up Attacks . | . . . Damage Inflicted 1634 | . 483 1151 Guns 945 | . 472 473 Cannons . | . . . Explosions 375 | . . 375 Melee 303 | . . 303 Ramming 11 | . 11 . Kinetic . | . . . Thermal 945 | . 472 473 Explosive 375 | . . 375 Electromagnetic . | . . . Impact 303 | . . 303 Slashing . | . . . Piercing . | . . . Highest Corruption . | . . . Average Corruption . | . . . Corruption Purged . | . . . Corruption Blocked . | . . . Overload Shots . | . . . Overflow Damage 241 | . . 241 Projectiles . | . . . Explosions 59 | . . 59 Melee 182 | . . 182 Knockbacks . | . . . Impact . | . . . Kinetic . | . . . Secondary . | . . . Self-Inflicted Damage 112 | . . 112 Shots 1 | . . 1 Rammed . | . . . Targets Rammed 4 | . 4 . Kicked 4 | . 4 . Crushed . | . . . Highest Temperature 378 | . 378 254 Average Temperature 110 | . 127 89 Received Heat Transfer 501 | . 123 378 Effects 3 | . 3 . Shutdowns 1 | . 1 . Energy Bleed 2 | . 2 . Siege Activations . | . . . Martial Activations . | . . . Shielding Activations . | . . . Robots Disrupted . | . . . Combat Hostiles . | . . . Robots Corrupted 2 | . . 2 Combat Hostiles . | . . . Parts Fried 10 | . . 10 Impact Corruptions 7 | . . 7 Robots Melted . | . . . Combat Hostiles . | . . . Parts Melted 6 | . 5 1 Heat Transferred 2488 | . 1628 860 Parts Sabotaged . | . . . Parts Stolen . | . . . Parts Stripped . | . . . Power Chain Reactions . | . . . Alert | -11 -10 -9 ------- Run | Yrd Mat Mat Maximum Alert Level 1 | . . 1 Low Security (%) 93 | 100 100 88 Level 1 6 | . . 11 Level 2 . | . . . Level 3 . | . . . Level 4 . | . . . Level 5 . | . . . High Security . | . . . Max Security . | . . . Peak Influence 228 | . 132 228 Initial 35 | . . 35 Average 59 | . 40 74 Influence Increases 672 | . 246 426 Destroy 0b10 Robot/C 420 | . 160 260 Destroy 0b10 Robot/NC 60 | . 20 40 Destroy Leader 90 | . 30 60 Successful Hack 44 | . 35 9 Disable Machine 30 | . . 30 Destroy Structure 28 | . 1 27 Influence Decreases 614 | . 162 452 Entered New Map 49 | . . 49 Time Decay 415 | . 162 253 Lost Part 150 | . . 150 Squads Dispatched 4 | . . 4 Investigation 3 | . . 3 Extermination . | . . . Reinforcement 1 | . . 1 Assault . | . . . Garrison . | . . . Intercept . | . . . Searches Triggered . | . . . Construction Impeded . | . . . Haulers Reinforced . | . . . Active Scanning Responses . | . . . Cargo Convoy Interrupts . | . . . Stealth | -11 -10 -9 --------- Run | Yrd Mat Mat Distress Signals 4 | . 2 2 Communications Jammed . | . . . Distress Signals . | . . . Times Spotted 43 | . 18 25 Peak Tracking Total 11 | . 4 11 Tactical Retreats 5 | . 3 2 ECM-based Alert Blocks 9 | . 6 3 Traps | -11 -10 -9 ------- Run | Yrd Mat Mat Traps Triggered 1 | . . 1 Indirectly . | . . . Trap Hack Attempts . | . . . Triggered . | . . . Disarmed . | . . . Reprogrammed . | . . . Reused . | . . . Traps Extracted . | . . . Installed . | . . . Triggered . | . . . Machines | -11 -10 -9 ---------- Run | Yrd Mat Mat Machines Disabled 2 | . . 2 Max in Single Turn 2 | . . 2 Machines Repaired . | . . . Machines Dismantled . | . . . Machines Sabotaged . | . . . Overloaded Fab Kills . | . . . Hacking | -11 -10 -9 --------- Run | Yrd Mat Mat Machines Accessed 8 | . 5 3 Terminals 8 | . 5 3 Fabricators . | . . . Repair Stations . | . . . Recycling Units . | . . . Scanalyzers . | . . . Garrison Access . | . . . Total Hacks 25 | . 11 14 Successful 14 | . 9 5 Failed 11 | . 2 9 Catastrophic 1 | . . 1 Database Lockouts . | . . . Manual 16 | . 5 11 Terminals 25 | . 11 14 Fabricators . | . . . Repair Stations . | . . . Recycling Units . | . . . Scanalyzers . | . . . Garrison Access . | . . . Terminal Hacks 8 | . 6 2 Robot Analysis 1 | . 1 . Branch Access Points 1 | . 1 . Emergency Access Points 1 | . 1 . Security Status 1 | . . 1 Patrol Status 1 | . 1 . Recall Investigation 1 | . . 1 Hauler Manifests 2 | . 2 . Fabricator Hacks . | . . . Repair Station Hacks . | . . . Recycling Unit Hacks . | . . . Scanalyzer . | . . . Garrison Access Hacks . | . . . Unauthorized Hacks 6 | . 3 3 Terminals 6 | . 3 3 Track 2 | . 1 1 Assimilate 2 | . 1 1 Botnet 2 | . 1 1 Fabricators . | . . . Repair Stations . | . . . Recycling Units . | . . . Scanalyzers . | . . . Garrison Access . | . . . Data Cores Recovered . | . . . Used . | . . . Hacking Detections 7 | . 4 3 Full Trace Events 2 | . . 2 Feedback Events . | . . . Feedback Blocked . | . . . Robot Schematics Acquired . | . . . Robots Built . | . . . Authchips . | . . . Time . | . . . Total Robot Build Rating . | . . . Part Schematics Acquired . | . . . Parts Built . | . . . Authchips . | . . . Time . | . . . Total Part Build Rating . | . . . Part Studies Acquired . | . . . Parts Repaired . | . . . Time . | . . . Parts Recycled . | . . . Recycled Matter . | . . . Retrieved Matter . | . . . Retrieved Components . | . . . Parts Scanalyzed . | . . . Part Schematics Acquired . | . . . Parts Damaged . | . . . Bothacking | -11 -10 -9 ------------ Run | Yrd Mat Mat Used RIF Installer . | . . . Robots Hacked . | . . . Non-combat . | . . . Combat . | . . . Robot Hacks Applied . | . . . Relay Couplers Released . | . . . Fabnet Peak Effective % . | . . . Robots Rewired . | . . . Allies Hacked . | . . . Hacks Repelled . | . . . Allies | -11 -10 -9 -------- Run | Yrd Mat Mat Total Allies . | . . . Largest Group . | . . . Highest-Rated Group . | . . . Highest-Rated Ally . | . . . Total Orders . | . . . Ally Attacks . | . . . Total Damage . | . . . Kills . | . . . Allies Corrupted . | . . . Allies Melted . | . . . Intel | -11 -10 -9 ------- Run | Yrd Mat Mat Active Infowar (turns) 918 | . 405 513 ECM 918 | . 405 513 Robot Analysis Total 1 | . 1 . Derelict Logs Recovered . | . . . Drone Launches . | . . . Drone Recoveries . | . . . Exploration | -11 -10 -9 ------------- Run | Yrd Mat Mat Turns Passed 1674 | 60 631 983 Spaces Moved 859 | 52 432 375 Core 46 | 44 . 2 Treads . | . . . Legs 813 | 8 432 373 Wheels . | . . . Hover . | . . . Flight . | . . . Fastest Speed 50 | 50 120 120 Average Speed 143 | 86 120 178 Slowest Speed 1350 | 120 120 1350 Overloaded Moves . | . . . Propulsion Burnouts . | . . . Robots Hopped . | . . . Potential Cave-ins . | . . . Cave-ins Triggered 1 | . . 1 Exploration Rate (%) 32 | 4 64 30 Regions Visited 2 Branch Regions . Pre-discovered Areas . | . . . Known Exits Taken . | . . . Unknown Exits Taken 2 | 1 1 . Scrap Searched . | . . . Spaces Dug . | . . . Terrain Destroyed 37 | . . 37 Melee . | . . . Projectile . | . . . AOE 37 | . . 37 Terrain Rammed . | . . . Walls Destroyed . | . . . Machines Disabled . | . . . Actions | -11 -10 -9 --------- Run | Yrd Mat Mat Total 1197 | 66 495 636 Wait 214 | 2 18 194 Move 857 | 51 431 375 Hop . | . . . Pick Up 27 | 7 10 10 Fast Attach 3 | 1 . 2 Attach 14 | 5 1 8 Detach . | . . . Swap 5 | . 2 3 Drop 10 | . 4 6 Fire 55 | . 25 30 Melee 8 | . . 8 Ram . | . . . Kick 4 | . 4 . Crush . | . . . Escape Stasis . | . . . Rewire . | . . . Trap . | . . . Miscellaneous . | . . . Route ------- -11/Scrapyard -10/Materials (discovered 2 exits: *Mat / *Min) -9/Materials (discovered 3 exits: [*Mat] / [*Min] / [*Sto]) History --------- Turn | Location | Event 3 | -11/Scrapyard | Met Revision 17 7 | -11/Scrapyard | Discovered new exit (range 15) 61 | -11/Scrapyard | Entered Materials 308 | -10/Materials | Build established: Mutant 312 | -10/Materials | Discovered new exit (range 14) 393 | -10/Materials | Identified exit to Mines 569 | -10/Materials | Discovered new exit (range 14) 692 | -10/Materials | Entered another Materials area 692 | -9/Materials | Evolved 2 slots: Propulsion x2 842 | -9/Materials | Discovered new exit (range 13) 1293 | -9/Materials | Crushed by falling debris 1304 | -9/Materials | Destroyed 9 combat bots 1336 | -9/Materials | Lost 8 parts (1p4n1u2w) 1348 | -9/Materials | Discovered new exit (range 16) 1577 | -9/Materials | Discovered new exit (range 6) 1638 | -9/Materials | Core integrity fell below 50% 1664 | -9/Materials | Core integrity fell below 20% 1675 | -9/Materials | Destroyed by S-10 Pest with Light Assault Rifle Last Messages --------------- EXIT=FOUND Lgt. Ion Engine destroyed. Aluminum Leg destroyed. Hammer destroyed. Heat Sink melted. G-34 Mercenary destroyed. R-06 Scavenger collects Aluminum Leg. Sml. Laser destroyed. Acquired 10 matter. R-06 Scavenger collects Corrupted Wheel. K-01 Serf collects debris. R-06 Scavenger collects Lgt. Ion Engine. G-34 Mercenary destroyed. K-01 Serf collects debris. Tractor Beam destroyed. Aluminum Leg destroyed. K-01 Serf collects debris. Aluminum Leg destroyed. U-05 Engineer destroyed. S-10 Pest destroyed. Map ----- +----------------------------------------------------+ | ?????????????????????????????????????????????????? | | ?????????????????????????????????????????????????? | | ???????????????????????? ??????????????????????? | | ???????????????????????? ?????????????????????? | | ???????????????????????? #?????????????????????? | | ???????????????????????? #?????????????????????? | | ???????????????????????? #?????????????????????? | | ???????????????????????# #?????????????????????? | | ???????????????????????# #?????????????????????? | | ???????????????????????# #????????????#####????? | | ???????????????????????# #????????????# ????? | | ???????????????????????# #????????????# ????? | | ???????????????????????# #????????????# ??# | | ???????????????????????# #????????????# """ # | | ???????????????????????# #????????????# """"" # | | ???????????????????????# #????????????# """"" # | | ????????????????# #### #????????????# """"" # | | ????????????????# %%!#????????????# """ # | | ????????????????##+##### = #????????????# # | | ???????????????????????# ##################+#### | | ???????????????????????# %*| | | ???????????????????????# ########## | | ???????????????????????# #?### ## ] | | ??????????????????????## #### # """ [ | | ??????????????????????#[ ## !# """ | | ??????????????????????# @ # %!%# "" | | ??????????????????????# < # =*%+% | | ??????????????????????# |%!# !%# | | ??????????????????????# ! # %# | | ??????????????????????##s% ## #%% | | ???????????????????????# u ### # # # ######### | | ???????????????????????# s#?## # # ###?????# | | ???????????????????????# #?##### ## # #?????# | | ???????????????????????# ########## + #?????# | | ??????????????????????? # #?????# | | ??????????????????????? ## ?????# | | ??????????????????????? #?##????# | | ???????????????????????#k ###########+#######??# | | ???????????????????????? #???????# #### | | ???????????????????????? ????????# """ # | | ???????????????????????? ????????# """"" # | | ???????????????????????????????????# """"" + | | ???????????????????????????????????# """"" # | | ???????????????????????????????????# """ # | | ???????????????????????????????????# [ # | | ???????????????????????????????????# # | | ???????????????????????????????????########### | | ?????????????????????????????????????????????# | | ?????????????????????????????????????????????# | | ?????????????? ????????????????????????????# | +----------------------------------------------------+ Best States ------------- Heat Dissipation 28 Energy Generation 10 Energy Capacity 250 Matter Stores 300 Matter Capacity 300 Sight Range 16 Terrain Scan Density 10 ECM Strength 1 Evasion (%) 55 Item Schematics ----------------- None Robot Schematics ------------------ None Fabricated ------------ Nothing Repaired ---------- Nothing Studied --------- None Alien Tech Used ----------------- None Achievements -------------- root@ Challenges ------------ None Game ------ Seed LargeMetaCycler Manual? 0 Play Time 00:14:54 Cumulative 23.5 hours Start 2025.10.27 @ 08:08:53 End 2025.10.27 @ 08:22:41 Sessions 1 Manual Loads 0 Difficulty Rogue Special Mode None Game No. 76 Rogue 76 Adventurer 0 Explorer 0 Win Type - Total 0 Types 0/0/0/0/0/0/0/0/0/0 Lore% 10 Gallery% 22 Achievement% 18 Wizard Run 0 Options --------- Layout 0 ASCII 0 Keyboard 0 Movement Mouse Keybinds 0 Fullscreen 2 Font 24/Smallcaps Map View 76x50 Zoom Use 0% Tactical HUD 0 Map Filters NONE Filters NONE Steam 1 RUN: 3bc9f8e2-da5b-4181-9122-dc800ddcac40